[Event "Titled Tuesday Blitz February 07 Early 2023"]
[White "Perez Ponsa, Federico"]
[Black "Sukandar, Irine Kharisma"]
[WhiteFideId "117927"]
[BlackFideId "7101937"]
[WhiteElo "2532"]
[BlackElo "2390"]
[Result "1-0"]
[Round "03"]
[TimeControl "180+2"]
[Date "2023.02.07"]
[WhiteClock "0:00:40"]
[BlackClock "0:00:14"]

1. e4 {[%clk 0:02:48]}  e5 {[%clk 0:02:58]} 2. Nf3 {[%clk 0:02:47]}  d6 {[%clk 0:02:58]} 3. d4 {[%clk 0:02:46]}  exd4 {[%clk 0:02:58]} 4. Nxd4 {[%clk 0:02:47]}  Nf6 {[%clk 0:02:59]} 5. Nc3 {[%clk 0:02:47]}  Be7 {[%clk 0:02:59]} 6. g3 {[%clk 0:02:48]}  O-O {[%clk 0:02:59]} 7. Bg2 {[%clk 0:02:43]}  Nbd7 {[%clk 0:02:54]} 8. O-O {[%clk 0:02:28]}  Nc5 {[%clk 0:02:54]} 9. h3 {[%clk 0:02:28]}  Re8 {[%clk 0:02:52]} 10. Nb3 {[%clk 0:02:27]}  Nxb3 {[%clk 0:02:44]} 11. axb3 {[%clk 0:02:28]}  Bd7 {[%clk 0:02:42]} 12. Qd3 {[%clk 0:02:19]}  Bc6 {[%clk 0:02:38]} 13. Bf4 {[%clk 0:02:07]}  Nd7 {[%clk 0:02:37]} 14. Nd5 {[%clk 0:02:06]}  Bf6 {[%clk 0:02:34]} 15. c3 {[%clk 0:01:50]}  Nc5 {[%clk 0:02:32]} 16. Qc2 {[%clk 0:01:50]}  a5 {[%clk 0:02:14]} 17. b4 {[%clk 0:01:41]}  Bxd5 {[%clk 0:01:24]} 18. bxc5 {[%clk 0:01:28]}  Bc4 {[%clk 0:01:14]} 19. Rfd1 {[%clk 0:01:26]}  Be5 {[%clk 0:01:14]} 20. cxd6 {[%clk 0:01:24]}  cxd6 {[%clk 0:01:12]} 21. Bxe5 {[%clk 0:01:12]}  Rxe5 {[%clk 0:01:11]} 22. Rd4 {[%clk 0:01:13]}  Be6 {[%clk 0:01:07]} 23. Qd2 {[%clk 0:01:08]}  Ra6 {[%clk 0:01:05]} 24. Rd1 {[%clk 0:01:06]}  h6 {[%clk 0:00:41]} 25. f4 {[%clk 0:01:03]}  Rc5 {[%clk 0:00:32]} 26. Rxd6 {[%clk 0:01:00]}  Rxd6 {[%clk 0:00:30]} 27. Qxd6 {[%clk 0:01:01]}  Qxd6 {[%clk 0:00:21]} 28. Rxd6 {[%clk 0:01:02]}  Rb5 {[%clk 0:00:21]} 29. Rd2 {[%clk 0:00:56]}  a4 {[%clk 0:00:20]} 30. Bf1 {[%clk 0:00:54]}  Rb3 {[%clk 0:00:20]} 31. f5 {[%clk 0:00:52]}  Bc8 {[%clk 0:00:19]} 32. Rd8+ {[%clk 0:00:52]}  Kh7 {[%clk 0:00:19]} 33. Rxc8 {[%clk 0:00:52]}  Rxb2 {[%clk 0:00:20]} 34. Ra8 {[%clk 0:00:52]}  b5 {[%clk 0:00:18]} 35. c4 {[%clk 0:00:43]}  bxc4 {[%clk 0:00:16]} 36. Bxc4 {[%clk 0:00:41]}  Rb1+ {[%clk 0:00:14]} 37. Kg2 {[%clk 0:00:40]} 1-0


[Site "https://www.chess.com"]

[Event "Titled Tuesday Blitz February 07 Early 2023"]
[White "Tarlabasi, Emirhan"]
[Black "Pakleza, Zbigniew"]
[WhiteFideId "6350275"]
[BlackFideId "1119290"]
[WhiteElo "2300"]
[BlackElo "2494"]
[Result "0-1"]
[Round "03"]
[TimeControl "180+2"]
[Date "2023.02.07"]
[WhiteClock "0:00:12"]
[BlackClock "0:00:05"]

1. d4 {[%clk 0:03:00]}  d6 {[%clk 0:02:59]} 2. Nf3 {[%clk 0:03:00]}  Bg4 {[%clk 0:02:59]} 3. e3 {[%clk 0:03:00]}  Nf6 {[%clk 0:02:58]} 4. Be2 {[%clk 0:03:00]}  e6 {[%clk 0:02:56]} 5. O-O {[%clk 0:03:00]}  Be7 {[%clk 0:02:56]} 6. c4 {[%clk 0:03:01]}  c6 {[%clk 0:02:57]} 7. Nc3 {[%clk 0:03:01]}  d5 {[%clk 0:02:57]} 8. b3 {[%clk 0:02:56]}  O-O {[%clk 0:02:56]} 9. Bb2 {[%clk 0:02:56]}  Nbd7 {[%clk 0:02:56]} 10. h3 {[%clk 0:02:45]}  Bh5 {[%clk 0:02:56]} 11. Rc1 {[%clk 0:02:24]}  a6 {[%clk 0:02:51]} 12. c5 {[%clk 0:01:58]}  Re8 {[%clk 0:02:46]} 13. b4 {[%clk 0:01:53]}  Bg6 {[%clk 0:02:29]} 14. Bd3 {[%clk 0:01:48]}  Ne4 {[%clk 0:02:24]} 15. Bxe4 {[%clk 0:01:38]}  dxe4 {[%clk 0:02:25]} 16. Nd2 {[%clk 0:01:39]}  f5 {[%clk 0:02:23]} 17. f4 {[%clk 0:01:23]}  exf3 {[%clk 0:02:20]} 18. Qxf3 {[%clk 0:01:23]}  Nf6 {[%clk 0:01:58]} 19. Nc4 {[%clk 0:01:20]}  Nd5 {[%clk 0:01:47]} 20. Nxd5 {[%clk 0:01:09]}  exd5 {[%clk 0:01:44]} 21. Ne5 {[%clk 0:01:09]}  Bf6 {[%clk 0:01:42]} 22. a4 {[%clk 0:01:07]}  Qc7 {[%clk 0:01:36]} 23. Qf4 {[%clk 0:01:05]}  Qe7 {[%clk 0:01:26]} 24. Bc3 {[%clk 0:01:04]}  Bg5 {[%clk 0:01:18]} 25. Qf3 {[%clk 0:01:01]}  Rf8 {[%clk 0:01:12]} 26. g3 {[%clk 0:01:01]}  Qe6 {[%clk 0:01:06]} 27. h4 {[%clk 0:01:00]}  Bd8 {[%clk 0:01:00]} 28. Qf4 {[%clk 0:00:57]}  Bc7 {[%clk 0:00:59]} 29. Rb1 {[%clk 0:00:52]}  Bh5 {[%clk 0:00:54]} 30. Rf2 {[%clk 0:00:47]}  h6 {[%clk 0:00:38]} 31. Rfb2 {[%clk 0:00:31]}  Be8 {[%clk 0:00:34]} 32. Rg2 {[%clk 0:00:27]}  Qf6 {[%clk 0:00:31]} 33. g4 {[%clk 0:00:18]}  Qxh4 {[%clk 0:00:21]} 34. Rf1 {[%clk 0:00:18]}  Bd7 {[%clk 0:00:08]} 35. g5 {[%clk 0:00:15]}  Qxf4 {[%clk 0:00:03]} 36. exf4 {[%clk 0:00:16]}  Bxe5 {[%clk 0:00:03]} 37. dxe5 {[%clk 0:00:14]}  hxg5 {[%clk 0:00:04]} 38. Rxg5 {[%clk 0:00:14]}  Be6 {[%clk 0:00:04]} 39. Bd4 {[%clk 0:00:14]}  Kf7 {[%clk 0:00:04]} 40. Kg2 {[%clk 0:00:12]}  Rh8 {[%clk 0:00:05]} 41. Rg1 {[%clk 0:00:10]}  Rh4 {[%clk 0:00:02]} 42. Kf3 {[%clk 0:00:10]}  Rg8 {[%clk 0:00:03]} 43. a5 {[%clk 0:00:08]}  Rh3+ {[%clk 0:00:01]} 44. R1g3 {[%clk 0:00:07]}  Rh2 {[%clk 0:00:02]} 45. Rg2 {[%clk 0:00:08]}  Rh1 {[%clk 0:00:02]} 46. Rg1 {[%clk 0:00:08]}  Rh3+ {[%clk 0:00:03]} 47. R1g3 {[%clk 0:00:08]}  Rh7 {[%clk 0:00:04]} 48. Rg1 {[%clk 0:00:08]}  Rh4 {[%clk 0:00:03]} 49. R1g3 {[%clk 0:00:08]}  Rh1 {[%clk 0:00:03]} 50. Rg1 {[%clk 0:00:09]}  Rh7 {[%clk 0:00:03]} 51. R1g2 {[%clk 0:00:09]}  Rgh8 {[%clk 0:00:03]} 52. R2g3 {[%clk 0:00:09]}  Bd7 {[%clk 0:00:02]} 53. Ke3 {[%clk 0:00:09]}  Be6 {[%clk 0:00:02]} 54. Kf3 {[%clk 0:00:09]}  Rg8 {[%clk 0:00:03]} 55. Ke3 {[%clk 0:00:08]}  Rh2 {[%clk 0:00:03]} 56. Rg2 {[%clk 0:00:09]}  Rxg2 {[%clk 0:00:03]} 57. Rxg2 {[%clk 0:00:09]}  Rh8 {[%clk 0:00:04]} 58. Kf3 {[%clk 0:00:10]}  Rh1 {[%clk 0:00:04]} 59. Rg1 {[%clk 0:00:10]}  Rh3+ {[%clk 0:00:04]} 60. Rg3 {[%clk 0:00:11]}  Rh4 {[%clk 0:00:05]} 61. Rg2 {[%clk 0:00:08]}  Kf8 {[%clk 0:00:04]} 62. Rg5 {[%clk 0:00:09]}  Rh3+ {[%clk 0:00:03]} 63. Rg3 {[%clk 0:00:09]}  Rh2 {[%clk 0:00:04]} 64. Rg2 {[%clk 0:00:08]}  Rh1 {[%clk 0:00:04]} 65. Rg1 {[%clk 0:00:08]}  Rh4 {[%clk 0:00:03]} 66. Rg5 {[%clk 0:00:08]}  Rh6 {[%clk 0:00:03]} 67. Rg3 {[%clk 0:00:07]}  Rh5 {[%clk 0:00:03]} 68. Rg5 {[%clk 0:00:08]}  Rh7 {[%clk 0:00:02]} 69. Rg3 {[%clk 0:00:08]}  Rh8 {[%clk 0:00:02]} 70. Kg2 {[%clk 0:00:08]}  Kf7 {[%clk 0:00:02]} 71. Rh3 {[%clk 0:00:09]}  Rxh3 {[%clk 0:00:02]} 72. Kxh3 {[%clk 0:00:10]}  g5 {[%clk 0:00:03]} 73. fxg5 {[%clk 0:00:10]}  f4+ {[%clk 0:00:03]} 74. Kg2 {[%clk 0:00:10]}  Kg6 {[%clk 0:00:04]} 75. Kf3 {[%clk 0:00:11]}  Kxg5 {[%clk 0:00:04]} 76. Bc3 {[%clk 0:00:10]}  Bg4+ {[%clk 0:00:04]} 77. Kf2 {[%clk 0:00:11]}  Kf5 {[%clk 0:00:05]} 78. Bb2 {[%clk 0:00:10]}  Ke4 {[%clk 0:00:05]} 79. Bc1 {[%clk 0:00:10]}  Kxe5 {[%clk 0:00:04]} 80. Bb2+ {[%clk 0:00:10]}  Ke4 {[%clk 0:00:04]} 81. Bg7 {[%clk 0:00:11]}  d4 {[%clk 0:00:04]} 82. Bf6 {[%clk 0:00:10]}  d3 {[%clk 0:00:05]} 83. Ke1 {[%clk 0:00:11]}  Kd5 {[%clk 0:00:02]} 84. Kd2 {[%clk 0:00:11]}  Be2 {[%clk 0:00:02]} 85. Bg5 {[%clk 0:00:10]}  f3 {[%clk 0:00:03]} 86. Ke1 {[%clk 0:00:10]}  Kc4 {[%clk 0:00:03]} 87. Bd2 {[%clk 0:00:11]}  Kb3 {[%clk 0:00:03]} 88. Kf2 {[%clk 0:00:11]}  Kc2 {[%clk 0:00:04]} 89. Ke1 {[%clk 0:00:11]}  f2+ {[%clk 0:00:04]} 90. Kxf2 {[%clk 0:00:12]}  Kxd2 {[%clk 0:00:05]} 91. b5 {[%clk 0:00:10]}  Kc3 {[%clk 0:00:04]} 92. bxc6 {[%clk 0:00:10]}  bxc6 {[%clk 0:00:05]} 93. Ke3 {[%clk 0:00:11]}  Kc2 {[%clk 0:00:05]} 94. Kd4 {[%clk 0:00:11]}  d2 {[%clk 0:00:05]} 95. Ke5 {[%clk 0:00:12]}  d1=Q {[%clk 0:00:05]} 0-1


[Site "https://www.chess.com"]

[Event "Titled Tuesday Blitz February 07 Early 2023"]
[White "Ladan, Nicholas"]
[Black "Kopylov, Alexander A."]
[WhiteFideId "30918855"]
[BlackFideId "4164857"]
[WhiteElo "2228"]
[BlackElo "2397"]
[Result "1-0"]
[Round "03"]
[TimeControl "180+2"]
[Date "2023.02.07"]
[WhiteClock "0:02:14"]
[BlackClock "0:02:18"]

1. d4 {[%clk 0:02:59]}  Nf6 {[%clk 0:02:59]} 2. Bf4 {[%clk 0:02:59]}  d6 {[%clk 0:02:58]} 3. e3 {[%clk 0:02:58]}  Nbd7 {[%clk 0:02:59]} 4. h3 {[%clk 0:02:56]}  e5 {[%clk 0:02:58]} 5. Bh2 {[%clk 0:02:56]}  exd4 {[%clk 0:02:58]} 6. exd4 {[%clk 0:02:57]}  Be7 {[%clk 0:02:55]} 7. Nf3 {[%clk 0:02:57]}  Nf8 {[%clk 0:02:56]} 8. c4 {[%clk 0:02:49]}  Ng6 {[%clk 0:02:56]} 9. Nc3 {[%clk 0:02:49]}  O-O {[%clk 0:02:57]} 10. Bd3 {[%clk 0:02:49]}  Re8 {[%clk 0:02:56]} 11. O-O {[%clk 0:02:49]}  c6 {[%clk 0:02:55]} 12. a4 {[%clk 0:02:43]}  a5 {[%clk 0:02:55]} 13. Qd2 {[%clk 0:02:41]}  Qb6 {[%clk 0:02:46]} 14. Rae1 {[%clk 0:02:37]}  Bd7 {[%clk 0:02:45]} 15. Rxe7 {[%clk 0:02:20]}  Nxe7 {[%clk 0:02:43]} 16. Bxd6 {[%clk 0:02:20]}  Bf5 {[%clk 0:02:18]} 17. Bxe7 {[%clk 0:02:13]}  Bxd3 {[%clk 0:02:18]} 18. Bxf6 {[%clk 0:02:14]}  Bxf1 {[%clk 0:02:18]} 19. Qg5 {[%clk 0:02:14]} 1-0


[Site "https://www.chess.com"]

[Event "Titled Tuesday Blitz February 07 Early 2023"]
[White "Rakhmanov, Aleksandr"]
[Black "ArchibaldCerveza29"]
[WhiteFideId "4173708"]
[WhiteElo "2632"]
[BlackElo "2531"]
[Result "1-0"]
[Round "03"]
[TimeControl "180+2"]
[Date "2023.02.07"]
[WhiteClock "0:00:03"]
[BlackClock "0:00:01"]

1. d4 {[%clk 0:02:57]}  d5 {[%clk 0:03:00]} 2. c4 {[%clk 0:02:56]}  e6 {[%clk 0:03:00]} 3. Nf3 {[%clk 0:02:55]}  Nf6 {[%clk 0:03:00]} 4. g3 {[%clk 0:02:54]}  Be7 {[%clk 0:03:01]} 5. Bg2 {[%clk 0:02:54]}  O-O {[%clk 0:03:01]} 6. Nc3 {[%clk 0:02:52]}  dxc4 {[%clk 0:03:00]} 7. Ne5 {[%clk 0:02:51]}  c5 {[%clk 0:02:57]} 8. dxc5 {[%clk 0:02:50]}  Bxc5 {[%clk 0:02:57]} 9. O-O {[%clk 0:02:40]}  Nc6 {[%clk 0:02:49]} 10. Nxc6 {[%clk 0:02:33]}  bxc6 {[%clk 0:02:50]} 11. Qa4 {[%clk 0:02:19]}  Rb8 {[%clk 0:02:22]} 12. Qxc4 {[%clk 0:02:16]}  Qd4 {[%clk 0:01:45]} 13. Qxd4 {[%clk 0:01:29]}  Bxd4 {[%clk 0:01:46]} 14. Rd1 {[%clk 0:01:27]}  c5 {[%clk 0:01:36]} 15. e3 {[%clk 0:01:01]}  Be5 {[%clk 0:00:49]} 16. Na4 {[%clk 0:00:46]}  Rb5 {[%clk 0:00:47]} 17. f4 {[%clk 0:00:41]}  Bc7 {[%clk 0:00:43]} 18. Bf1 {[%clk 0:00:32]}  Rb8 {[%clk 0:00:32]} 19. b3 {[%clk 0:00:29]}  Ne4 {[%clk 0:00:29]} 20. Ba3 {[%clk 0:00:26]}  Bb6 {[%clk 0:00:27]} 21. Rac1 {[%clk 0:00:23]}  Bb7 {[%clk 0:00:19]} 22. Nxc5 {[%clk 0:00:20]}  Rfc8 {[%clk 0:00:18]} 23. Nxe4 {[%clk 0:00:13]}  Bxe3+ {[%clk 0:00:16]} 24. Nf2 {[%clk 0:00:13]}  Bxc1 {[%clk 0:00:06]} 25. Bxc1 {[%clk 0:00:14]}  Bf3 {[%clk 0:00:05]} 26. Re1 {[%clk 0:00:12]}  Rc2 {[%clk 0:00:05]} 27. Bc4 {[%clk 0:00:07]}  g6 {[%clk 0:00:04]} 28. Be3 {[%clk 0:00:04]}  Rxa2 {[%clk 0:00:04]} 29. Bd4 {[%clk 0:00:03]}  Rc2 {[%clk 0:00:01]} 30. h4 {[%clk 0:00:03]}  Kf8 {[%clk 0:00:01]} 31. Bxa7 {[%clk 0:00:02]}  Ra8 {[%clk 0:00:02]} 32. Bc5+ {[%clk 0:00:03]}  Kg8 {[%clk 0:00:01]} 33. Bd4 {[%clk 0:00:03]}  Raa2 {[%clk 0:00:02]} 34. Rb1 {[%clk 0:00:03]}  Rd2 {[%clk 0:00:01]} 35. Be3 {[%clk 0:00:02]}  Rdc2 {[%clk 0:00:01]} 36. Re1 {[%clk 0:00:03]}  Rab2 {[%clk 0:00:01]} 37. g4 {[%clk 0:00:03]} 1-0


[Site "https://www.chess.com"]

[Event "Titled Tuesday Blitz February 07 Early 2023"]
[White "Paichadze, Luka"]
[Black "Basso, Pier Luigi"]
[WhiteFideId "13602934"]
[BlackFideId "866970"]
[WhiteElo "2515"]
[BlackElo "2506"]
[Result "1-0"]
[Round "03"]
[TimeControl "180+2"]
[Date "2023.02.07"]
[WhiteClock "0:00:09"]
[BlackClock "0:00:07"]

1. e4 {[%clk 0:03:00]}  e5 {[%clk 0:02:59]} 2. d4 {[%clk 0:02:59]}  exd4 {[%clk 0:02:59]} 3. Qxd4 {[%clk 0:03:00]}  Nc6 {[%clk 0:02:58]} 4. Qe3 {[%clk 0:03:00]}  Nf6 {[%clk 0:02:58]} 5. Nc3 {[%clk 0:03:01]}  Bb4 {[%clk 0:02:59]} 6. Bd2 {[%clk 0:03:01]}  O-O {[%clk 0:02:59]} 7. O-O-O {[%clk 0:03:02]}  Re8 {[%clk 0:03:00]} 8. Qf4 {[%clk 0:03:02]}  Bxc3 {[%clk 0:02:49]} 9. Bxc3 {[%clk 0:03:02]}  Nxe4 {[%clk 0:02:49]} 10. Bc4 {[%clk 0:03:01]}  Nf6 {[%clk 0:02:15]} 11. Nf3 {[%clk 0:03:00]}  d5 {[%clk 0:02:11]} 12. Bxf6 {[%clk 0:02:30]}  Qxf6 {[%clk 0:02:10]} 13. Qxf6 {[%clk 0:02:28]}  gxf6 {[%clk 0:02:11]} 14. Bxd5 {[%clk 0:02:28]}  Nb4 {[%clk 0:02:06]} 15. Bc4 {[%clk 0:02:18]}  Bg4 {[%clk 0:02:04]} 16. Rd4 {[%clk 0:02:07]}  Bxf3 {[%clk 0:01:55]} 17. gxf3 {[%clk 0:02:08]}  Rad8 {[%clk 0:01:37]} 18. Rg4+ {[%clk 0:01:51]}  Kf8 {[%clk 0:01:36]} 19. Rhg1 {[%clk 0:01:40]}  Nc6 {[%clk 0:01:28]} 20. Rg8+ {[%clk 0:01:25]}  Ke7 {[%clk 0:01:28]} 21. Re1+ {[%clk 0:01:18]}  Kd7 {[%clk 0:01:28]} 22. Rexe8 {[%clk 0:01:16]}  Rxe8 {[%clk 0:01:28]} 23. Bxf7 {[%clk 0:01:16]}  Rxg8 {[%clk 0:01:28]} 24. Bxg8 {[%clk 0:01:16]}  h6 {[%clk 0:01:28]} 25. Bd5 {[%clk 0:01:16]}  Kd6 {[%clk 0:00:55]} 26. Bxc6 {[%clk 0:01:16]}  bxc6 {[%clk 0:00:43]} 27. Kd2 {[%clk 0:01:17]}  Ke5 {[%clk 0:00:43]} 28. Ke3 {[%clk 0:01:16]}  Kf5 {[%clk 0:00:43]} 29. f4 {[%clk 0:00:33]}  Kg4 {[%clk 0:00:43]} 30. Ke4 {[%clk 0:00:34]}  h5 {[%clk 0:00:37]} 31. f3+ {[%clk 0:00:34]}  Kh3 {[%clk 0:00:34]} 32. Kf5 {[%clk 0:00:35]}  Kxh2 {[%clk 0:00:34]} 33. Kxf6 {[%clk 0:00:36]}  Kg3 {[%clk 0:00:34]} 34. Kg5 {[%clk 0:00:30]}  h4 {[%clk 0:00:34]} 35. f5 {[%clk 0:00:31]}  h3 {[%clk 0:00:35]} 36. f6 {[%clk 0:00:32]}  h2 {[%clk 0:00:36]} 37. f7 {[%clk 0:00:33]}  h1=Q {[%clk 0:00:37]} 38. f8=Q {[%clk 0:00:34]}  Qxf3 {[%clk 0:00:23]} 39. Qc5 {[%clk 0:00:26]}  Kg2 {[%clk 0:00:16]} 40. a4 {[%clk 0:00:18]}  a6 {[%clk 0:00:16]} 41. a5 {[%clk 0:00:18]}  Qe4 {[%clk 0:00:16]} 42. Qf5 {[%clk 0:00:17]}  Qe3+ {[%clk 0:00:16]} 43. Kf6 {[%clk 0:00:16]}  Qd4+ {[%clk 0:00:14]} 44. Qe5 {[%clk 0:00:15]}  Qh4+ {[%clk 0:00:14]} 45. Ke6 {[%clk 0:00:14]}  Qc4+ {[%clk 0:00:15]} 46. Kd7 {[%clk 0:00:13]}  Qxc2 {[%clk 0:00:15]} 47. Kxc7 {[%clk 0:00:13]}  Qc4 {[%clk 0:00:15]} 48. Kb6 {[%clk 0:00:12]}  Kf1 {[%clk 0:00:13]} 49. Qc5 {[%clk 0:00:10]}  Qb3+ {[%clk 0:00:13]} 50. Kxa6 {[%clk 0:00:10]}  Qxb2 {[%clk 0:00:14]} 51. Qxc6 {[%clk 0:00:10]}  Qa2 {[%clk 0:00:13]} 52. Kb6 {[%clk 0:00:09]}  Kg1 {[%clk 0:00:13]} 53. a6 {[%clk 0:00:09]}  Qb3+ {[%clk 0:00:13]} 54. Kc7 {[%clk 0:00:09]}  Qf7+ {[%clk 0:00:13]} 55. Kb8 {[%clk 0:00:09]}  Qf8+ {[%clk 0:00:13]} 56. Kb7 {[%clk 0:00:10]}  Qe7+ {[%clk 0:00:13]} 57. Qc7 {[%clk 0:00:10]}  Qe4+ {[%clk 0:00:14]} 58. Kb8 {[%clk 0:00:10]}  Qb4+ {[%clk 0:00:13]} 59. Ka8 {[%clk 0:00:09]}  Qe4+ {[%clk 0:00:13]} 60. Ka7 {[%clk 0:00:08]}  Kf1 {[%clk 0:00:11]} 61. Qc1+ {[%clk 0:00:05]}  Kf2 {[%clk 0:00:10]} 62. Qb2+ {[%clk 0:00:06]}  Kf1 {[%clk 0:00:10]} 63. Qc1+ {[%clk 0:00:06]}  Kf2 {[%clk 0:00:10]} 64. Qb2+ {[%clk 0:00:07]}  Kf1 {[%clk 0:00:10]} 65. Qb5+ {[%clk 0:00:06]}  Kf2 {[%clk 0:00:08]} 66. Kb6 {[%clk 0:00:07]}  Qe6+ {[%clk 0:00:08]} 67. Qc6 {[%clk 0:00:07]}  Qb3+ {[%clk 0:00:08]} 68. Kc7 {[%clk 0:00:08]}  Qf7+ {[%clk 0:00:08]} 69. Qd7 {[%clk 0:00:08]}  Qc4+ {[%clk 0:00:08]} 70. Kb7 {[%clk 0:00:08]}  Qb4+ {[%clk 0:00:09]} 71. Ka8 {[%clk 0:00:08]}  Qe4+ {[%clk 0:00:08]} 72. Kb8 {[%clk 0:00:07]}  Qb4+ {[%clk 0:00:08]} 73. Kc8 {[%clk 0:00:06]}  Qc4+ {[%clk 0:00:07]} 74. Kb7 {[%clk 0:00:06]}  Qb4+ {[%clk 0:00:08]} 75. Kc7 {[%clk 0:00:07]}  Qc4+ {[%clk 0:00:08]} 76. Qc6 {[%clk 0:00:07]}  Qf7+ {[%clk 0:00:07]} 77. Kb8 {[%clk 0:00:08]}  Qf4+ {[%clk 0:00:07]} 78. Kb7 {[%clk 0:00:08]}  Qf7+ {[%clk 0:00:07]} 79. Qc7 {[%clk 0:00:09]}  Qb3+ {[%clk 0:00:07]} 80. Qb6+ {[%clk 0:00:08]}  Qxb6+ {[%clk 0:00:07]} 81. Kxb6 {[%clk 0:00:09]} 1-0


[Site "https://www.chess.com"]

[Event "Titled Tuesday Blitz February 07 Early 2023"]
[White "Shohat, Yotam"]
[Black "Ahmadzada, Ahmad"]
[WhiteFideId "2813955"]
[BlackFideId "13413007"]
[WhiteElo "2346"]
[BlackElo "2488"]
[Result "0-1"]
[Round "03"]
[TimeControl "180+2"]
[Date "2023.02.07"]
[WhiteClock "0:00:02"]
[BlackClock "0:00:08"]

1. e4 {[%clk 0:03:00]}  Nf6 {[%clk 0:02:56]} 2. e5 {[%clk 0:03:01]}  Nd5 {[%clk 0:02:56]} 3. d4 {[%clk 0:03:01]}  d6 {[%clk 0:02:56]} 4. c4 {[%clk 0:03:01]}  Nb6 {[%clk 0:02:56]} 5. f4 {[%clk 0:03:02]}  dxe5 {[%clk 0:02:51]} 6. fxe5 {[%clk 0:03:03]}  Bf5 {[%clk 0:02:50]} 7. Nc3 {[%clk 0:02:59]}  e6 {[%clk 0:02:50]} 8. Be3 {[%clk 0:02:57]}  c5 {[%clk 0:02:18]} 9. d5 {[%clk 0:02:48]}  N8d7 {[%clk 0:02:02]} 10. Nf3 {[%clk 0:02:26]}  Bg4 {[%clk 0:01:56]} 11. Bf4 {[%clk 0:02:26]}  g5 {[%clk 0:01:48]} 12. Bg3 {[%clk 0:02:17]}  Bg7 {[%clk 0:01:41]} 13. Qe2 {[%clk 0:02:12]}  O-O {[%clk 0:01:24]} 14. O-O-O {[%clk 0:02:09]}  exd5 {[%clk 0:01:19]} 15. cxd5 {[%clk 0:02:06]}  Nxe5 {[%clk 0:01:03]} 16. Bxe5 {[%clk 0:02:03]}  Re8 {[%clk 0:01:04]} 17. Qc2 {[%clk 0:01:39]}  Bxf3 {[%clk 0:01:00]} 18. gxf3 {[%clk 0:01:36]}  Rxe5 {[%clk 0:00:47]} 19. Bd3 {[%clk 0:01:30]}  h6 {[%clk 0:00:46]} 20. h4 {[%clk 0:01:29]}  c4 {[%clk 0:00:40]} 21. Be4 {[%clk 0:01:28]}  Qf6 {[%clk 0:00:29]} 22. hxg5 {[%clk 0:01:25]}  hxg5 {[%clk 0:00:29]} 23. Kb1 {[%clk 0:01:14]}  Nc8 {[%clk 0:00:28]} 24. Bh7+ {[%clk 0:00:59]}  Kf8 {[%clk 0:00:27]} 25. Ne4 {[%clk 0:01:00]}  Qf4 {[%clk 0:00:17]} 26. d6 {[%clk 0:00:56]}  Nb6 {[%clk 0:00:17]} 27. Rd4 {[%clk 0:00:22]}  Rb5 {[%clk 0:00:13]} 28. Rhd1 {[%clk 0:00:16]}  Bxd4 {[%clk 0:00:12]} 29. Rxd4 {[%clk 0:00:17]}  Qe5 {[%clk 0:00:12]} 30. Rd1 {[%clk 0:00:05]}  Na4 {[%clk 0:00:10]} 31. Rd2 {[%clk 0:00:02]}  Rxb2+ {[%clk 0:00:08]} 32. Qxb2 {[%clk 0:00:02]}  Nxb2 {[%clk 0:00:09]} 33. Rxb2 {[%clk 0:00:03]}  f5 {[%clk 0:00:08]} 34. Nxg5 {[%clk 0:00:02]}  Qe1+ {[%clk 0:00:08]} 35. Kc2 {[%clk 0:00:02]}  Qe2+ {[%clk 0:00:09]} 36. Kc3 {[%clk 0:00:01]}  Qe3+ {[%clk 0:00:07]} 37. Kxc4 {[%clk 0:00:02]}  Qxg5 {[%clk 0:00:08]} 0-1


[Site "https://www.chess.com"]

[Event "Titled Tuesday Blitz February 07 Early 2023"]
[White "Kukhmazov, Arsen"]
[Black "Jaskolka, Tomasz"]
[WhiteFideId "24108260"]
[BlackFideId "1170791"]
[WhiteElo "2512"]
[BlackElo "2238"]
[Result "0-1"]
[Round "03"]
[TimeControl "180+2"]
[Date "2023.02.07"]
[WhiteClock "0:00:25"]
[BlackClock "0:00:12"]

1. Nf3 {[%clk 0:02:55]}  d5 {[%clk 0:02:58]} 2. c4 {[%clk 0:02:51]}  c6 {[%clk 0:02:58]} 3. e3 {[%clk 0:02:42]}  Nf6 {[%clk 0:02:56]} 4. b3 {[%clk 0:02:42]}  Bg4 {[%clk 0:02:53]} 5. Bb2 {[%clk 0:02:42]}  e6 {[%clk 0:02:53]} 6. h3 {[%clk 0:02:41]}  Bxf3 {[%clk 0:02:54]} 7. Qxf3 {[%clk 0:02:42]}  Nbd7 {[%clk 0:02:54]} 8. Nc3 {[%clk 0:02:38]}  Bd6 {[%clk 0:02:44]} 9. Qd1 {[%clk 0:02:36]}  Qe7 {[%clk 0:02:35]} 10. d4 {[%clk 0:02:34]}  Ba3 {[%clk 0:02:34]} 11. Bxa3 {[%clk 0:02:31]}  Qxa3 {[%clk 0:02:34]} 12. Bd3 {[%clk 0:02:32]}  a5 {[%clk 0:02:27]} 13. O-O {[%clk 0:02:31]}  O-O {[%clk 0:02:27]} 14. Qc2 {[%clk 0:02:31]}  h6 {[%clk 0:02:26]} 15. c5 {[%clk 0:02:23]}  a4 {[%clk 0:01:53]} 16. Nxa4 {[%clk 0:02:23]}  e5 {[%clk 0:01:43]} 17. Rfd1 {[%clk 0:01:55]}  Rfe8 {[%clk 0:01:43]} 18. Bf5 {[%clk 0:01:35]}  Re7 {[%clk 0:01:32]} 19. Rab1 {[%clk 0:01:11]}  g6 {[%clk 0:01:11]} 20. Bd3 {[%clk 0:01:12]}  Qb4 {[%clk 0:01:03]} 21. Qb2 {[%clk 0:01:10]}  exd4 {[%clk 0:00:57]} 22. exd4 {[%clk 0:01:11]}  Kg7 {[%clk 0:00:56]} 23. a3 {[%clk 0:01:11]}  Qa5 {[%clk 0:00:56]} 24. Bc2 {[%clk 0:01:05]}  Re2 {[%clk 0:00:47]} 25. Qc1 {[%clk 0:01:01]}  Rae8 {[%clk 0:00:44]} 26. b4 {[%clk 0:00:59]}  Qc7 {[%clk 0:00:44]} 27. Bd3 {[%clk 0:00:58]}  R2e6 {[%clk 0:00:41]} 28. Nc3 {[%clk 0:00:58]}  Ne4 {[%clk 0:00:39]} 29. Nxe4 {[%clk 0:00:58]}  dxe4 {[%clk 0:00:40]} 30. Bc4 {[%clk 0:00:59]}  Rf6 {[%clk 0:00:39]} 31. d5 {[%clk 0:00:56]}  e3 {[%clk 0:00:32]} 32. fxe3 {[%clk 0:00:36]}  Qg3 {[%clk 0:00:32]} 33. d6 {[%clk 0:00:31]}  Rf2 {[%clk 0:00:20]} 34. Qc3+ {[%clk 0:00:31]}  f6 {[%clk 0:00:18]} 35. Bf1 {[%clk 0:00:31]}  Ne5 {[%clk 0:00:19]} 36. Qxe5 {[%clk 0:00:22]}  fxe5 {[%clk 0:00:19]} 37. d7 {[%clk 0:00:20]}  Rd8 {[%clk 0:00:19]} 38. Rd6 {[%clk 0:00:19]}  Rf7 {[%clk 0:00:15]} 39. Rbd1 {[%clk 0:00:18]}  Qf2+ {[%clk 0:00:15]} 40. Kh1 {[%clk 0:00:19]}  Qxf1+ {[%clk 0:00:15]} 41. Rxf1 {[%clk 0:00:20]}  Rxf1+ {[%clk 0:00:16]} 42. Kh2 {[%clk 0:00:21]}  Rf7 {[%clk 0:00:17]} 43. b5 {[%clk 0:00:21]}  Rfxd7 {[%clk 0:00:16]} 44. Re6 {[%clk 0:00:22]}  Kf7 {[%clk 0:00:13]} 45. Rxe5 {[%clk 0:00:22]}  Rd5 {[%clk 0:00:13]} 46. Re4 {[%clk 0:00:23]}  Rxc5 {[%clk 0:00:13]} 47. bxc6 {[%clk 0:00:24]}  bxc6 {[%clk 0:00:13]} 48. a4 {[%clk 0:00:24]}  Ra5 {[%clk 0:00:13]} 49. Rf4+ {[%clk 0:00:25]}  Ke7 {[%clk 0:00:12]} 50. Re4+ {[%clk 0:00:25]}  Kf7 {[%clk 0:00:13]} 51. Rf4+ {[%clk 0:00:25]}  Ke6 {[%clk 0:00:13]} 52. Re4+ {[%clk 0:00:25]}  Re5 {[%clk 0:00:14]} 53. Rc4 {[%clk 0:00:25]}  c5 {[%clk 0:00:13]} 54. e4 {[%clk 0:00:26]}  Rd4 {[%clk 0:00:12]} 55. Rc1 {[%clk 0:00:27]}  Rexe4 {[%clk 0:00:13]} 56. a5 {[%clk 0:00:26]}  Rc4 {[%clk 0:00:13]} 57. Rb1 {[%clk 0:00:26]}  Ra4 {[%clk 0:00:13]} 58. Rb6+ {[%clk 0:00:27]}  Kd5 {[%clk 0:00:13]} 59. Rxg6 {[%clk 0:00:25]}  Re6 {[%clk 0:00:12]} 0-1


[Site "https://www.chess.com"]